bitfinex-derivatives/quotes_SOLF0:USTF0_20250323
["timestamp","ask_amount","ask_price","bid_price","bid_amount"]
[1742754490194,0.04909651,130.94,130.92,0.05635425]
[1742754490700,0.04909651,130.94,130.92,7.69585425]
[1742754490999,0.04909651,130.94,130.92,0.05635425]
[1742754492102,0.04909651,130.94,130.92,7.69595425]
[1742754493301,0.04909651,130.94,130.93,7.639]
[1742754493703,0.04909651,130.94,130.92,0.05635425]
[1742754493901,0.04909651,130.94,130.93,7.639]
[1742754495401,0.04909651,130.94,130.92,7.69565425]
[1742754495901,0.04909651,130.94,130.93,7.639]
[1742754496201,0.04909651,130.94,130.92,9.91377157]
[1742754497702,0.04909651,130.94,130.92,7.69565425]
[1742754499904,0.04909651,130.94,130.92,0.05635425]
[1742754500301,7.68749651,130.94,130.92,0.05635425]
[1742754500501,0.04909651,130.94,130.92,0.05635425]
[1742754500699,0.04909651,130.94,130.92,7.69575425]
[1742754501096,0.04909651,130.94,130.92,0.05635425]
[1742754502006,0.04909651,130.94,130.92,7.69585425]
[1742754502202,9.90651383,130.94,130.92,0.05635425]
[1742754502906,17.54531383,130.94,130.92,0.05635425]
[1742754505500,17.49641732,130.93,130.92,0.05635425]
[1742754505707,9.85741732,130.93,130.87,9.85741732]
[1742754505902,9.85741732,130.91,130.86,9.85741732]
[1742754506304,7.6411,130.9,130.87,7.6425]
[1742754506505,9.85741732,130.91,130.86,9.85741732]
[1742754506710,9.85741732,130.91,130.88,7.6415]
[1742754506711,17.49781732,130.91,130.88,7.6415]
[1742754506911,0.0511112,130.9,130.88,9.85741732]
[1742754507212,0.0511112,130.9,130.89,9.85741732]
[1742754507400,0.0511112,130.9,130.89,17.49871732]
[1742754522117,1.12e-05,130.9,130.89,17.49871732]
[1742754525615,26.9,130.95,130.94,7.6384]
[1742754525820,26.9,130.95,130.92,9.85741732]
[1742754526709,26.9,130.95,130.93,7.6387]
[1742754526914,26.94928165,130.95,130.93,7.6387]
[1742754527720,26.94928165,130.95,130.94,7.6384]
[1742754529420,26.94928165,130.95,130.93,7.6387]
[1742754529622,26.94928165,130.95,130.92,9.90694629]
[1742754530515,26.94928165,130.95,130.94,7.6384]
[1742754532824,0.04928165,130.95,130.94,17.49581732]
[1742754533623,0.04928165,130.95,130.94,7.6384]
[1742754533922,0.04928165,130.95,130.94,17.49581732]
[1742754553750,0.04928165,130.95,130.94,7.6384]
[1742754554051,0.04928165,130.95,130.94,17.49581732]
[1742754555551,0.04928165,130.95,130.93,17.49621732]
[1742754555849,0.04928165,130.95,130.92,0.04952897]
[1742754555850,9.85741732,130.94,130.92,0.04952897]
[1742754556049,17.49611732,130.94,130.92,0.04952897]
[1742754556251,7.6387,130.94,130.92,0.04952897]
[1742754558745,34.519,130.93,130.92,0.04952897]
[1742754558949,26.88,130.93,130.92,0.04952897]
[1742754564955,34.519,130.93,130.92,0.04952897]
[1742754568259,7.6401,130.92,130.88,9.85741732]
[1742754568559,9.85741732,130.91,130.87,9.85741732]
[1742754568755,36.73741732,130.9,130.86,9.85741732]
[1742754569255,36.73741732,130.9,130.87,7.6422]
[1742754569461,0.05790152,130.89,130.87,9.90574918]
[1742754569862,0.05790152,130.89,130.88,7.6414]
[1742754574965,0.05790152,130.89,130.87,7.69063186]
[1742754575865,9.91531884,130.89,130.87,0.04833186]
[1742754576065,9.85741732,130.88,130.87,0.04833186]
[1742754576271,9.85741732,130.88,130.84,9.85741732]
[1742754576459,26.88,130.87,130.84,9.85741732]
[1742754576966,26.88,130.87,130.85,7.6436]
[1742754577166,26.88,130.87,130.84,9.85741732]
[1742754577967,26.88,130.87,130.84,17.50141732]
[1742754578266,26.88,130.87,130.85,7.6436]
[1742754579665,26.88,130.87,130.86,17.50051732]
[1742754581067,0.05588156,130.88,130.87,7.6425]
[1742754581268,26.93588156,130.88,130.87,7.6425]
[1742754581668,0.05588156,130.88,130.87,7.6425]
[1742754583171,0.05588156,130.88,130.87,17.49991732]
[1742754583364,0.05588156,130.88,130.87,7.6425]
[1742754583671,0.05588156,130.88,130.86,9.85741732]
[1742754584970,0.05588156,130.88,130.87,17.49991732]
[1742754585473,0.05588156,130.88,130.87,7.6425]
[1742754585869,0.05588156,130.88,130.87,17.49991732]
[1742754586271,0.05588156,130.88,130.87,7.6425]
[1742754591370,0.05588156,130.88,130.86,7.6427]
[1742754593172,0.05588156,130.88,130.85,9.85741732]
[1742754593173,0.05588156,130.88,130.87,7.6425]
[1742754593378,0.05588156,130.88,130.87,17.49991732]
[1742754596275,0.05588156,130.88,130.87,44.37991732]
[1742754600284,2.1329,130.94,130.87,36.73741732]
[1742754600486,26.88,130.94,130.91,9.85741732]
[1742754600688,400.65170912,130.95,130.93,9.85741732]
[1742754600986,41.65170912,130.95,130.94,17.49581732]
[1742754602286,10.42119512,130.95,130.94,17.49581732]
[1742754603290,10.42119512,130.95,130.94,9.85741732]
[1742754603475,20.27861244,130.95,130.93,0.05242622]
[1742754603680,47.15861244,130.95,130.93,0.05242622]
[1742754604281,54.79681244,130.95,130.93,0.05242622]
[1742754604485,47.15861244,130.95,130.93,0.05242622]
[1742754604685,9.85741732,130.94,130.93,0.05242622]
[1742754604886,17.49581732,130.94,130.93,0.05242622]
[1742754607985,31.127,130.95,130.93,0.05242622]
[1742754608187,28.9959,130.95,130.93,0.05242622]
[1742754608381,2.1471728,130.96,130.93,9.90984354]
[1742754608691,0.0575728,130.96,130.95,9.85741732]
[1742754608893,0.0575728,130.96,130.95,17.49521732]
[1742754614194,0.0575728,130.96,130.95,9.85741732]
[1742754616391,0.0575728,130.96,130.95,17.49521732]
[1742754625810,0.0575728,130.96,130.94,17.49561732]
[1742754627013,0.0575728,130.96,130.95,7.6378]
[1742754633121,0.0575728,130.96,130.95,17.49521732]
[1742754633718,0.0575728,130.96,130.95,44.35521732]
[1742754656443,0.0575728,130.96,130.95,34.4978]
[1742754656644,0.0575728,130.96,130.95,44.35521732]
[1742754662741,4.0581,131.0,130.99,7.6355]
[1742754662946,41.65170912,131.01,130.99,9.85741732]
[1742754663149,41.65170912,131.01,131.0,9.85741732]
[1742754663540,41.65170912,131.01,131.0,17.49231732]
[1742754663947,41.65170912,131.01,131.0,7.6349]
[1742754666148,41.65170912,131.01,130.99,17.54290354]
[1742754666341,2.14491405,131.02,130.99,0.05028622]
[1742754666543,9.85741732,131.01,130.98,26.86]
[1742754666742,7.6359,130.99,130.97,9.85741732]
[1742754666937,7.6359,130.99,130.96,44.35441732]
[1742754667648,7.68563273,130.99,130.96,44.40386017]
[1742754670746,0.04973273,130.99,130.96,44.40386017]
[1742754672348,0.04973273,130.99,130.97,9.85741732]
[1742754672762,0.04973273,130.99,130.97,17.49401732]
[1742754674344,0.04973273,130.99,130.98,17.49351732]
[1742754697673,41.65170912,131.05,131.04,7.6326]
[1742754697869,41.65170912,131.05,131.04,44.33001732]
[1742754698474,41.65170912,131.05,131.04,36.69741732]
[1742754698867,41.65170912,131.05,131.04,26.84]
[1742754699067,41.65170912,131.05,131.03,17.54773017]
[1742754700276,0.05115576,131.06,131.04,17.49001732]
[1742754701164,0.05115576,131.06,131.05,7.632]
[1742754701365,0.05115576,131.06,131.05,17.48941732]
[1742754702973,0.05115576,131.06,131.05,44.32941732]
[1742754704781,0.05115576,131.06,131.05,9.85741732]
[1742754705575,0.05115576,131.06,131.04,17.48971732]
[1742754705874,0.05115576,131.06,131.05,7.632]
[1742754707775,0.05115576,131.06,131.05,17.48941732]
[1742754712485,0.05115576,131.06,131.05,9.85741732]
[1742754713285,0.05115576,131.06,131.04,36.69741732]
[1742754714381,0.05115576,131.06,131.05,7.632]
[1742754715884,0.05115576,131.06,131.04,44.32971732]
[1742754716286,0.05115576,131.06,131.03,9.91483017]
[1742754716488,0.05115576,131.06,131.03,17.54773017]
[1742754716680,9.90857308,131.06,131.03,17.54773017]
[1742754716880,0.05115576,131.06,131.03,17.54773017]
[1742754719782,7.68305576,131.06,131.03,7.69031285]
[1742754719983,17.54047308,131.06,131.03,7.69031285]
[1742754720183,0.05115576,131.06,131.04,7.6325]
[1742754720991,0.05115576,131.06,131.05,7.632]
[1742754721487,0.05115576,131.06,131.04,9.85741732]
[1742754721681,0.05115576,131.06,131.04,17.48971732]
[1742754724388,0.05115576,131.06,131.03,0.05741285]
[1742754724589,11.88527308,131.06,131.03,0.05741285]
[1742754724795,9.85741732,131.04,131.03,0.05741285]
[1742754725093,9.85741732,131.04,131.0,44.33201732]
[1742754726291,0.05201699,131.03,131.01,0.05776463]
[1742754726492,17.54273431,131.03,131.01,0.05776463]
[1742754727387,7.6337,131.02,131.01,0.05776463]
[1742754727892,17.54303431,131.03,131.01,0.05776463]
[1742754741106,9.90943431,131.03,131.01,0.05776463]
[1742754742105,0.05201699,131.03,131.02,9.85741732]
[1742754742297,0.05201699,131.03,131.01,9.91518195]
[1742754742708,0.05201699,131.03,131.01,17.54918195]
[1742754743205,0.05201699,131.03,131.01,0.05776463]
[1742754743600,9.90943431,131.03,131.01,0.05776463]
[1742754744105,17.54303431,131.03,131.01,0.05776463]
[1742754747113,7.68561699,131.03,131.01,0.05776463]
[1742754747408,0.05201699,131.03,131.01,0.05776463]
[1742754753214,0.05201699,131.03,131.01,7.69206463]
[1742754755616,0.05201699,131.03,131.01,17.54948195]
[1742754760122,9.85741732,131.02,130.97,261.67741732]
[1742754760321,9.85741732,131.01,130.97,288.51741732]
[1742754761022,9.85741732,131.01,130.98,7.6358]
[1742754761427,9.90981799,131.01,130.98,7.6358]
[1742754762029,17.54441799,131.01,130.98,7.6358]
[1742754763126,9.90981799,131.01,130.99,7.6354]
[1742754763325,9.90981799,131.01,130.97,36.69741732]
[1742754763919,9.90981799,131.01,130.98,7.6356]
[1742754764831,17.54431799,131.01,130.98,7.6356]
[1742754767125,9.90981799,131.01,130.99,7.6355]
[1742754767327,0.05240067,131.01,131.0,9.85741732]
[1742754767530,0.05240067,131.01,131.0,36.69741732]
[1742754767826,10.42119512,131.03,131.0,36.69741732]
[1742754768129,10.42119512,131.03,131.02,17.49111732]
[1742754768335,113.8546042,131.04,131.02,9.85741732]
[1742754768525,113.8546042,131.04,131.03,36.69741732]
[1742754768725,31.230514,131.06,131.03,36.69741732]
[1742754769025,31.230514,131.06,131.05,9.85741732]
[1742754769334,31.28210129,131.06,131.05,17.48941732]
[1742754771233,0.05158729,131.06,131.05,17.48941732]
[1742754777643,31.230514,131.1,131.08,7.6298]
[1742754777847,31.230514,131.1,131.08,17.48721732]
[1742754778842,31.28832378,131.1,131.08,17.53890678]
[1742754779147,31.28832378,131.1,131.09,17.48711732]
[1742754780241,0.05780978,131.1,131.09,9.85741732]
[1742754781448,0.05780978,131.1,131.08,9.90910678]
[1742754781936,0.05780978,131.1,131.08,0.05168946]
[1742754782447,7.6297,131.09,131.08,0.05168946]
[1742754785349,7.6297,131.09,131.08,9.90910678]
[1742754787850,7.68720978,131.1,131.08,9.90910678]
[1742754792244,0.05780978,131.1,131.08,9.90910678]
[1742754792451,0.05780978,131.1,131.09,9.85741732]
[1742754795149,0.05780978,131.1,131.08,9.90910678]
[1742754795351,0.05780978,131.1,131.08,0.05168946]
[1742754796451,7.6297,131.09,131.08,0.05168946]
[1742754798149,395.67741732,131.09,131.02,9.85741732]
[1742754798352,9.85741732,131.05,131.01,9.85741732]
[1742754798555,26.82,131.05,131.02,9.85741732]
[1742754798751,26.82,131.05,131.03,9.85741732]
[1742754799352,26.87572234,131.05,131.03,9.90562887]
[1742754799654,34.50772234,131.05,131.03,9.90562887]
[1742754800454,7.6326,131.04,131.03,9.90562887]
[1742754800656,26.87572234,131.05,131.03,9.90562887]
[1742754801054,0.05572234,131.05,131.03,9.90562887]
[1742754802056,7.68802234,131.05,131.03,9.90562887]
[1742754803060,0.05572234,131.05,131.03,9.90562887]
[1742754803358,0.05572234,131.05,131.03,0.04821155]
[1742754803559,0.05572234,131.05,131.03,7.68131155]
[1742754804355,0.05572234,131.05,131.03,0.04821155]
[1742754805163,7.68782234,131.05,131.03,0.04821155]
[1742754805664,17.49001732,131.04,131.03,0.04821155]
[1742754805961,44.31001732,131.04,131.03,0.04821155]
[1742754812069,9.85741732,131.01,130.97,9.85741732]
[1742754812568,36.67741732,131.01,130.97,9.85741732]
[1742754813068,0.05609641,131.0,130.97,9.85741732]
[1742754813467,7.69129641,131.0,130.97,9.85741732]
[1742754819164,7.69129641,131.0,130.97,17.49401732]
[1742754822170,7.69129641,131.0,130.97,9.85741732]
[1742754823274,7.69129641,131.0,130.97,17.49411732]
[1742754826470,7.69129641,131.0,130.97,9.85741732]
[1742754828076,7.69129641,131.0,130.97,17.49401732]
[1742754834577,9.85741732,130.98,130.9,26.84]
[1742754834779,9.85741732,130.94,130.9,9.85741732]
[1742754834977,9.85741732,130.93,130.89,9.85741732]
[1742754835176,9.85741732,130.91,130.87,9.85741732]
[1742754835376,36.69741732,130.9,130.86,9.85741732]
[1742754835577,36.74739634,130.9,130.86,9.85741732]
[1742754835780,44.38849634,130.9,130.86,9.85741732]
[1742754836080,26.88997902,130.9,130.87,9.85741732]
[1742754836278,26.88997902,130.9,130.87,17.49961732]
[1742754837482,26.88997902,130.9,130.87,9.85741732]
[1742754838179,26.88997902,130.9,130.86,7.6429]
[1742754838483,26.88997902,130.9,130.87,9.85741732]
[1742754839483,26.88997902,130.9,130.87,17.49971732]
[1742754840086,26.88997902,130.9,130.88,7.6419]
[1742754840285,26.88997902,130.9,130.88,17.49931732]
[1742754840482,0.04997902,130.9,130.89,9.85741732]
[1742754840884,0.04997902,130.9,130.89,17.49871732]
[1742754841788,0.04997902,130.9,130.85,26.84]
[1742754841789,0.04997902,130.9,130.88,17.49911732]
[1742754842180,0.04997902,130.9,130.88,7.6417]
[1742754843983,0.04997902,130.9,130.87,17.49961732]
[1742754845885,36.74739634,130.9,130.87,7.6422]
[1742754848891,36.74739634,130.9,130.88,7.6419]
[1742754850094,36.74739634,130.9,130.89,7.6413]
[1742754851494,26.88997902,130.9,130.89,7.6413]
[1742754851691,0.04997902,130.9,130.89,17.49871732]
[1742754855499,0.04997902,130.9,130.89,7.6413]
[1742754856198,0.04997902,130.9,130.89,17.49871732]
[1742754858203,0.04997902,130.9,130.89,7.6413]
[1742754858599,0.04997902,130.9,130.89,17.49871732]
[1742754858794,361.1171,130.95,130.89,9.85741732]
[1742754858795,359.0,130.95,130.89,9.85741732]
[1742754859100,359.0,130.95,130.93,9.85741732]
[1742754859296,7.6375,130.96,130.93,17.49611732]
[1742754859604,9.85741732,130.96,130.92,9.85741732]
[1742754859900,9.85741732,130.96,130.93,9.85741732]
[1742754860095,0.0532902,130.95,130.93,9.91024897]
[1742754860400,0.0532902,130.95,130.94,7.6379]
[1742754868502,0.0532902,130.95,130.94,17.49531732]
[1742754871109,9.02e-05,130.95,130.94,44.33531732]
[1742754872597,47.24593332,131.01,130.94,36.69741732]
[1742754872908,47.24593332,131.01,130.98,9.85741732]
[1742754873700,37.44405402,131.01,130.98,9.90863887]
[1742754873908,26.89553802,131.01,130.98,9.90863887]
[1742754874106,26.89553802,131.01,131.0,7.6349]
[1742754874306,36.75295534,131.01,131.0,7.6349]
[1742754874909,26.89553802,131.01,131.0,7.6349]
[1742754875208,0.05553802,131.01,131.0,7.6349]
[1742754878110,9.91295534,131.01,130.99,7.6352]
[1742754881413,9.91295534,131.01,130.98,7.68712155]
[1742754881916,9.91295534,131.01,130.99,7.6354]
[1742754882410,9.85741732,131.0,130.99,7.6354]
[1742754882712,9.91295534,131.01,131.0,7.6349]
[1742754883310,0.05553802,131.01,131.0,7.6349]
[1742754887121,9.91295534,131.01,131.0,7.6349]
[1742754887624,0.05553802,131.01,131.0,7.6349]
[1742754888021,0.05553802,131.01,131.0,17.49231732]
[1742754888917,0.05553802,131.01,131.0,7.6349]
[1742754889719,0.05553802,131.01,130.99,7.6352]
[1742754890222,0.05553802,131.01,130.98,9.90863887]
[1742754890522,0.05553802,131.01,130.98,17.54443887]
[1742754890822,9.85741732,131.0,130.98,0.05122155]
[1742754891126,17.49291732,130.99,130.98,0.05122155]
[1742754903836,11.90801732,131.0,130.98,0.05122155]
[1742754904831,38.72801732,131.0,130.98,0.05122155]
[1742754905029,46.36331732,131.0,130.98,0.05122155]
[1742754905231,36.5059,131.0,130.98,0.05122155]
[1742754906030,46.36331732,131.0,130.98,0.05122155]
[1742754910240,19.54331732,131.0,130.98,0.05122155]
[1742754910441,46.36331732,131.0,130.98,0.05122155]
[1742754911942,9.91295534,131.01,130.98,0.05122155]
[1742754912239,0.05553802,131.01,130.98,9.90863887]
[1742754912545,0.05553802,131.01,130.99,7.6352]
[1742754914642,0.05553802,131.01,130.99,17.49261732]
[1742754915546,0.05553802,131.01,131.0,7.6349]
[1742754915939,0.05553802,131.01,131.0,17.49231732]
[1742754917846,47.22593332,131.06,131.03,7.633]
[1742754918439,54.85763332,131.06,131.03,7.633]
[1742754919048,20.45651931,131.06,131.04,7.6326]
[1742754919244,20.45651931,131.06,131.03,0.05224074]
[1742754919842,28.08811931,131.06,131.03,7.68514074]
[1742754920050,17.53960331,131.06,131.03,7.68514074]
[1742754926550,7.632,131.05,131.03,7.68514074]
[1742754927649,17.53960331,131.06,131.03,7.68514074]
[1742754929557,7.632,131.05,131.03,7.68514074]
[1742754930059,17.49001732,131.04,131.03,0.05224074]
[1742754930757,17.48971732,131.05,131.03,0.05224074]
[1742754931854,9.85741732,131.05,131.03,0.05224074]
[1742754932955,17.48961732,131.05,131.03,0.05224074]
[1742754935962,9.85741732,131.05,131.03,0.05224074]
[1742754937164,7.68228599,131.06,131.03,9.90965806]
[1742754937361,17.53970331,131.06,131.03,0.05224074]
[1742754937561,9.85741732,131.05,131.03,0.05224074]
[1742754937965,17.48951732,131.05,131.03,0.05224074]
[1742754938563,9.85741732,131.04,131.03,0.05224074]
[1742754939363,17.48951732,131.05,131.03,0.05224074]
[1742754944370,17.49001732,131.04,131.03,0.05224074]
[1742754948964,9.85741732,131.04,131.03,0.05224074]
[1742754949163,17.48971732,131.05,131.03,0.05224074]
[1742754950064,7.6326,131.04,131.03,0.05224074]
[1742754950265,17.49001732,131.04,131.03,0.05224074]
[1742754962479,36.67741732,131.04,130.98,36.67741732]
[1742754962775,9.85741732,131.03,130.98,36.67741732]
[1742754962981,17.49091732,131.03,130.99,7.6351]
[1742754963678,0.04860768,131.02,131.0,0.0499232]
[1742754964779,0.04860768,131.02,131.0,7.6847232]
[1742754984993,9.85741732,131.01,131.0,0.0499232]
[1742754985197,36.67741732,131.01,130.94,9.85741732]
[1742754985396,9.85741732,130.98,130.94,9.85741732]
[1742754985596,9.85741732,130.98,130.95,7.6376]
[1742754985791,36.67741732,130.98,130.95,7.6376]
[1742754986092,17.49411732,130.97,130.94,7.6382]
[1742754986297,17.49411732,130.97,130.95,0.04993817]
[1742754986494,9.85741732,130.96,130.95,0.04993817]
[1742754986991,9.85741732,130.97,130.95,0.04993817]
[1742754987199,36.72746175,130.98,130.96,7.637]
[1742754987401,9.85741732,130.97,130.95,0.04993817]
[1742754987596,9.85741732,130.96,130.95,0.04993817]
[1742754989806,17.49461732,130.96,130.95,0.04993817]
[1742754990006,14.05291732,130.96,130.9,261.75741732]
[1742754990203,9.85741732,130.94,130.9,261.75741732]
[1742754990404,9.85741732,130.93,130.9,7.6406]
[1742754990906,9.85741732,130.93,130.89,9.85741732]
[1742754991207,9.91416732,130.93,130.9,0.02323597]
[1742754991608,9.91416732,130.93,130.91,7.64]
[1742754996013,0.05675,130.93,130.92,7.6396]
[1742754999915,0.05675,130.93,130.92,17.49701732]
[1742755021335,5e-05,130.93,130.92,17.49701732]
[1742755021523,11.84131732,130.99,130.98,7.6361]
[1742755021829,36.67741732,130.99,130.98,7.6361]
[1742755022431,36.67741732,130.99,130.94,36.67741732]
[1742755022631,9.85741732,130.97,130.93,9.85741732]
[1742755022830,9.85741732,130.97,130.95,0.05784611]
[1742755023032,0.05504485,130.96,130.95,7.69564611]
[1742755033342,0.05504485,130.96,130.95,17.55306343]
[1742755041248,26.82,131.0,130.99,7.6355]
[1742755041738,9.85741732,131.01,130.97,9.85741732]
[1742755042348,0.04993982,131.0,130.99,7.6355]
[1742755043747,0.04993982,131.0,130.99,17.49291732]
[1742755046955,3.982e-05,131.0,130.99,17.49291732]
[1742755047255,41.77903,131.05,131.04,7.6326]
[1742755047458,41.77903,131.05,131.04,17.49001732]
[1742755047658,41.77903,131.06,131.05,7.632]
[1742755047956,51.63644732,131.06,131.05,7.632]
[1742755048457,51.63644732,131.06,131.04,7.68222808]
[1742755048657,9.85741732,131.05,131.04,0.04992808]
[1742755049354,41.77903,131.06,131.04,0.04992808]
[1742755049856,41.77903,131.06,131.05,7.632]
[1742755050658,11.94504228,131.07,131.05,7.632]
[1742755053362,9.85741732,131.06,131.05,7.632]
[1742755057461,9.85741732,131.06,131.04,0.04992808]
[1742755058465,9.85741732,131.06,131.05,7.632]
[1742755062064,2.08762496,131.07,131.05,7.632]
[1742755062259,9.85741732,131.06,131.05,7.632]
[1742755066268,9.85741732,131.06,131.04,0.04992808]
[1742755066462,36.65741732,131.05,131.04,0.04992808]
[1742755068370,36.65741732,131.05,131.02,7.6336]
[1742755068563,9.85741732,131.03,131.02,7.6336]
[1742755068768,9.85741732,131.03,130.95,2.0581]
[1742755069069,9.85741732,131.01,130.97,9.85741732]
[1742755069260,36.65741732,131.02,130.97,9.85741732]
[1742755069460,36.65741732,131.02,131.0,7.6346]
[1742755069660,0.05306604,131.01,131.0,7.6346]
[1742755077177,0.05306604,131.01,130.99,7.6352]
[1742755079083,0.05306604,131.01,131.0,7.6349]
[1742755079780,0.05306604,131.01,130.99,7.6353]
[1742755080380,0.05306604,131.01,131.0,7.6349]
[1742755080775,0.05306604,131.01,131.0,17.49231732]
[1742755084085,6.604e-05,131.01,131.0,17.49231732]
[1742755092893,6.604e-05,131.01,131.0,7.6349]
[1742755093098,6.604e-05,131.01,131.0,17.49231732]
[1742755108410,6.604e-05,131.01,131.0,7.6349]
[1742755117108,6.604e-05,131.01,130.98,9.90973628]
[1742755118411,6.604e-05,131.01,130.99,7.6351]
[1742755118913,6.604e-05,131.01,130.98,9.90973628]
[1742755120514,6.604e-05,131.01,130.99,7.6354]
[1742755124411,9.85741732,131.0,130.98,0.05231896]
[1742755124612,36.65741732,130.99,130.98,0.05231896]
[1742755124818,36.65741732,130.99,130.94,9.85741732]
[1742755125019,9.85741732,130.97,130.94,9.85741732]
[1742755126015,9.90607785,130.97,130.94,17.55223565]
[1742755126419,9.90607785,130.97,130.94,9.91433565]
[1742755126719,0.04866053,130.97,130.95,7.6375]
[1742755127113,0.04866053,130.97,130.96,7.6372]
[1742755128719,9.90607785,130.97,130.95,7.6376]
[1742755128917,0.04866053,130.97,130.95,17.49501732]
[1742755129117,0.04866053,130.97,130.95,9.85741732]
[1742755129314,0.04866053,130.97,130.96,7.6372]
[1742755131822,0.04866053,130.97,130.96,17.49461732]
[1742755133424,0.04866053,130.97,130.96,7.6372]
[1742755143928,26.8,131.01,130.99,7.6349]
[1742755144327,9.85741732,131.01,130.97,9.85741732]
[1742755144523,36.65741732,131.01,130.98,7.6357]
[1742755145230,36.70832992,131.01,130.98,7.68533259]
[1742755145634,9.90832992,131.01,130.98,7.68533259]
[1742755145825,36.70832992,131.01,130.98,7.68533259]
[1742755147239,36.70832992,131.01,130.99,7.6355]
[1742755148440,26.8509126,131.01,130.99,7.6355]
[1742755150042,0.0509126,131.01,131.0,7.6349]
[1742755151240,0.0509126,131.01,131.0,17.49231732]
[1742755153942,0.0509126,131.01,131.0,7.6349]
[1742755154842,0.0509126,131.01,130.99,7.6353]
[1742755158346,0.0509126,131.01,131.0,7.6349]
[1742755166758,0.0509126,131.01,130.99,7.6352]
[1742755167653,36.68832992,131.01,130.98,7.68563259]
[1742755167852,9.85741732,131.0,130.98,0.04963259]
[1742755168751,17.49261732,131.0,130.98,0.04963259]
[1742755169050,9.85741732,130.99,130.98,0.04963259]
[1742755170458,9.85741732,131.0,130.98,0.04963259]
[1742755171055,0.0509126,131.01,130.99,9.85741732]
[1742755171256,0.0509126,131.01,131.0,9.85741732]
[1742755172467,0.0509126,131.01,131.0,17.49231732]
[1742755172863,0.0509126,131.01,131.0,7.6349]
[1742755173861,0.0509126,131.01,131.0,17.49231732]
[1742755177866,0.0509126,131.01,130.99,7.6353]
[1742755178262,0.0509126,131.01,130.98,9.90704991]
[1742755178665,0.0509126,131.01,131.0,7.6349]
[1742755182271,36.68832992,131.01,130.98,0.04963259]
[1742755182869,36.68832992,131.01,130.98,7.68523259]
[1742755183571,36.68832992,131.01,130.99,7.6354]
[1742755183872,26.8309126,131.01,130.99,7.6354]
[1742755187372,36.68832992,131.01,130.98,7.68553259]
[1742755187571,36.68832992,131.01,130.98,0.04963259]
[1742755188475,36.68832992,131.01,130.98,7.68543259]
[1742755189772,44.32282992,131.01,130.98,7.68543259]
[1742755190672,9.85741732,131.0,130.98,0.04963259]
[1742755191371,9.85741732,130.99,130.98,0.04963259]
[1742755191968,17.49291732,130.99,130.98,0.04963259]
[1742755196974,9.85741732,130.99,130.98,0.04963259]
[1742755198277,376.49251732,131.0,130.98,0.04963259]
[1742755198474,368.85741732,131.0,130.98,0.04963259]
[1742755199079,368.85741732,131.0,130.98,7.68533259]
[1742755199270,395.63741732,131.0,130.98,7.68533259]
[1742755200480,359.0,131.0,130.98,7.68533259]
[1742755200677,359.0,131.0,130.99,7.6355]
[1742755203981,359.0,131.0,130.98,7.68543259]
[1742755205577,376.49241732,131.0,130.98,0.04963259]
[1742755205977,368.85741732,131.0,130.98,0.04963259]
[1742755206376,368.85741732,131.0,130.98,7.68563259]
[1742755206576,0.0509126,131.01,130.99,9.85741732]
[1742755206875,0.0509126,131.01,131.0,9.85741732]
[1742755207483,0.0509126,131.01,131.0,17.49231732]
[1742755232810,0.0509126,131.01,131.0,7.6349]
[1742755233998,0.0509126,131.01,130.99,7.6351]
[1742755234199,9.85741732,131.0,130.98,0.04963259]
[1742755234400,9.85741732,130.99,130.98,0.04963259]
[1742755237412,7.6364,130.98,130.93,9.85741732]
[1742755237610,9.85741732,130.97,130.92,36.63741732]
[1742755237804,9.85741732,130.96,130.93,7.6386]
[1742755238112,9.85741732,130.96,130.92,36.63741732]
[1742755238713,0.05777985,130.95,130.94,7.6381]
[1742755242014,9.91519717,130.95,130.93,7.68905865]
[1742755242422,0.05777985,130.95,130.93,0.05025865]
[1742755242616,0.05777985,130.95,130.94,7.6384]
[1742755251523,9.91519717,130.95,130.93,0.05025865]
[1742755252125,9.91519717,130.95,130.93,7.68895865]
[1742755253127,9.91519717,130.95,130.93,0.05025865]
[1742755253923,9.91519717,130.95,130.93,7.68895865]
[1742755255024,9.85741732,130.94,130.93,0.05025865]
[1742755255230,359.0,130.93,130.87,9.85741732]
[1742755255430,36.63741732,130.92,130.88,9.85741732]
[1742755255623,36.63741732,130.92,130.87,9.85741732]
[1742755255823,36.63741732,130.92,130.88,9.85741732]
[1742755256126,36.63741732,130.92,130.89,7.641]
[1742755256326,0.05252606,130.91,130.89,7.69905594]
[1742755258232,0.05252606,130.91,130.9,7.6407]
[1742755260733,0.05252606,130.91,130.9,17.49811732]
[1742755260933,2.606e-05,130.91,130.9,17.49811732]
[1742755262639,2.606e-05,130.91,130.9,7.6407]
[1742755262931,2.606e-05,130.91,130.9,17.49811732]
[1742755265241,2.606e-05,130.91,130.9,7.6407]